bitfinex/quotes_SOLUSD_20250616
["timestamp","ask_amount","ask_price","bid_price","bid_amount"]
[1750087722457,4.70567559,157.26,157.21,6.36091851]
[1750087722642,12.71344299,157.27,157.21,6.36091851]
[1750087722643,4.70616423,157.25,157.22,12.71344299]
[1750087722850,4.70601783,157.26,157.22,12.71344299]
[1750087723056,9.42259709,157.25,157.23,12.71344299]
[1750087723229,4.70649768,157.24,157.23,12.71344299]
[1750087723550,9.42273261,157.24,157.23,12.71344299]
[1750087724447,9.42273261,157.24,157.22,12.71344299]
[1750087724646,9.42273261,157.23,157.22,12.71344299]
[1750087724957,0.28432314,157.27,157.22,12.71344299]
[1750087725129,9.4337978,157.26,157.23,12.71344299]
[1750087725468,9.4337978,157.26,157.19,6.36172784]
[1750087725469,22.14724079,157.25,157.19,6.36172784]
[1750087725633,9.4337978,157.24,157.21,6.36091851]
[1750087725830,9.4337978,157.23,157.21,6.36091851]
[1750087726035,9.4337978,157.22,157.21,6.36091851]
[1750087726438,9.4337978,157.22,157.19,12.71344299]
[1750087726671,9.4337978,157.21,157.2,12.71344299]
[1750087726839,4.7168989,157.21,157.2,12.71344299]
[1750087727161,9.46670605,157.21,157.2,12.71344299]
[1750087727734,9.46670605,157.21,157.2,19.07476614]
[1750087727957,4.74980715,157.21,157.2,19.07476614]
[1750087728162,4.74942712,157.21,157.2,19.07476614]
[1750087728361,4.74942712,157.21,157.2,12.71344299]
[1750087728567,4.74942712,157.21,157.19,6.36156021]
[1750087728762,7.12801744,157.22,157.19,6.36156021]
[1750087728971,2.37649665,157.21,157.19,6.36156021]
[1750087729138,4.75281325,157.22,157.19,6.36156021]
[1750087729486,4.75396482,157.22,157.19,6.36156021]
[1750087729642,2.37621799,157.21,157.19,6.36156021]
[1750087729842,4.75378929,157.22,157.19,6.36156021]
[1750087730054,2.37636191,157.21,157.19,6.36156021]
[1750087730259,4.75378769,157.22,157.19,6.36156021]
[1750087730471,2.37640704,157.21,157.19,6.36156021]
[1750087730769,12.71344299,157.22,157.19,6.36156021]
[1750087731073,2.37618564,157.21,157.19,6.36156021]
[1750087731241,2.37631374,157.22,157.2,12.71344299]
[1750087731569,2.37649844,157.23,157.2,12.71344299]
[1750087731749,4.75450375,157.24,157.2,19.07445524]
[1750087731945,2.37668458,157.23,157.2,19.07445524]
[1750087732165,12.71344299,157.24,157.2,19.07445524]
[1750087732462,2.37659502,157.23,157.2,19.07445524]
[1750087732647,12.71344299,157.24,157.2,6.36101225]
[1750087732848,2.37651944,157.23,157.2,6.36101225]
[1750087733157,10.87773787,157.22,157.15,32.602]
[1750087733340,4.75401644,157.22,157.16,6.36294222]
[1750087733676,19.61574156,157.23,157.16,6.36294222]
[1750087733966,15.63158377,157.22,157.17,8.50121843]
[1750087734177,2.3763489,157.21,157.17,8.50121843]
[1750087734475,13.25523487,157.22,157.17,8.50121843]
[1750087734652,2.37660847,157.21,157.17,8.50121843]
[1750087734843,13.25523487,157.22,157.18,6.36213258]
[1750087735039,2.3768595,157.21,157.18,6.36213258]
[1750087735344,13.25523487,157.22,157.17,14.86358059]
[1750087735538,2.37683179,157.21,157.17,14.86358059]
[1750087735768,2.37667439,157.21,157.18,8.50121843]
[1750087735943,5.03833958,157.23,157.17,6.36236216]
[1750087736142,2.37670545,157.22,157.2,8.50121843]
[1750087736336,2.37685365,157.22,157.2,8.50121843]
[1750087736538,4.75401644,157.24,157.2,8.50121843]
[1750087736844,8.50121843,157.25,157.21,6.36091851]
[1750087737162,8.50121843,157.24,157.19,8.50121843]
[1750087737871,2.37842291,157.23,157.19,8.50121843]
[1750087738054,10.87957239,157.24,157.2,6.36132315]
[1750087738367,10.87957239,157.24,157.19,8.50121843]
[1750087738368,2.37836538,157.23,157.19,14.86280239]
[1750087738665,2.37836538,157.23,157.16,6.36294222]
[1750087738666,8.50121843,157.23,157.16,6.36294222]
[1750087738976,2.37853892,157.22,157.18,8.50121843]
[1750087739168,8.50121843,157.23,157.18,8.50121843]
[1750087739472,2.37863449,157.22,157.19,8.50121843]
[1750087740067,2.37863449,157.22,157.16,22.27029778]
[1750087740360,8.73928526,157.22,157.16,6.36294222]
[1750087740595,8.50121843,157.17,157.12,66.54917746]
[1750087740741,37.3279725,157.15,157.12,66.54917746]
[1750087740940,0.28432314,157.13,157.12,66.54917746]
[1750087741141,5.03940183,157.13,157.08,6.36618283]
[1750087741344,8.50121843,157.11,157.07,6.36643575]
[1750087741546,8.50121843,157.11,157.04,26.0]
[1750087741547,7.41680692,157.1,157.04,6.36780438]
[1750087741769,8.50121843,157.08,157.04,6.36780438]
[1750087741980,2.66172823,157.1,157.07,8.50121843]
[1750087741981,2.3780276,157.1,157.07,8.50121843]
[1750087742141,10.87970294,157.14,157.09,8.50121843]
[1750087742345,4.75721922,157.13,157.09,8.50121843]
[1750087742545,4.75721922,157.12,157.1,8.50121843]
[1750087742773,4.75721922,157.11,157.1,8.50121843]
[1750087742982,11.3279725,157.15,157.1,12.76706928]
[1750087743272,11.3279725,157.15,157.14,12.76706928]
[1750087743449,16.07777796,157.15,157.09,1.5]
[1750087743643,11.3279725,157.15,157.14,12.76706928]
[1750087743884,16.07857211,157.15,157.14,12.76706928]
[1750087744176,11.3279725,157.15,157.14,6.36375206]
[1750087744361,11.3279725,157.15,157.14,19.13082134]
[1750087749042,11.3279725,157.15,157.14,6.36375206]
[1750087749241,11.3279725,157.15,157.14,19.13082134]
[1750087756261,11.3279725,157.15,157.14,12.76706928]
[1750087756462,11.3279725,157.15,157.13,19.13106502]
[1750087756663,11.3279725,157.15,157.14,12.76706928]
[1750087757089,11.3279725,157.15,157.14,6.36375206]
[1750087757271,11.3279725,157.15,157.14,19.13082134]
[1750087763081,16.07553212,157.15,157.14,8.50498152]
[1750087763283,16.07553212,157.15,157.11,15.91222855]
[1750087763284,11.3279725,157.15,157.11,15.91222855]
[1750087763457,11.3279725,157.15,157.1,6.36537237]
[1750087763660,11.3279725,157.15,157.12,8.50498152]
[1750087763858,11.3279725,157.15,157.13,8.50498152]
[1750087764571,11.3279725,157.15,157.14,8.50498152]
[1750087764773,26.0,157.19,157.14,8.50498152]
[1750087764981,0.28432314,157.21,157.17,8.50498152]
[1750087765189,0.14216157,157.21,157.17,14.86719994]
[1750087765485,9.49219328,157.2,157.17,14.86719994]
[1750087765651,4.74609664,157.19,157.17,14.86719994]
[1750087765858,4.748464,157.2,157.18,8.50498152]
[1750087766078,4.74832378,157.19,157.18,8.50498152]
[1750087766462,11.27124405,157.22,157.18,8.50498152]
[1750087766876,9.49643414,157.21,157.18,8.50498152]
[1750087767118,9.49684278,157.2,157.11,15.91241805]
[1750087767267,4.74821707,157.19,157.18,8.50498152]
[1750087767956,9.49921832,157.19,157.17,8.50498152]
[1750087768156,4.75095727,157.18,157.17,8.50498152]
[1750087768892,26.13675194,157.22,157.17,8.50498152]
[1750087768893,4.75087903,157.2,157.17,8.50498152]
[1750087769067,4.75063167,157.19,157.15,48.27171492]
[1750087769265,11.27124405,157.22,157.18,8.50498152]
[1750087769488,11.27124405,157.22,157.21,8.50498152]
[1750087769689,20.77166954,157.22,157.16,1.5294]
[1750087769880,4.75020062,157.21,157.16,1.5294]
[1750087770074,11.27124405,157.22,157.16,1.5294]
[1750087770275,4.75193438,157.21,157.16,1.5294]
[1750087770489,11.27124405,157.22,157.16,1.5294]
[1750087770791,4.75193338,157.21,157.16,1.5294]
[1750087770985,11.27124405,157.22,157.2,8.50498152]
[1750087771183,11.27124405,157.22,157.21,8.50498152]
[1750087771385,20.77369479,157.22,157.21,8.50498152]
[1750087772185,20.77391356,157.22,157.21,8.50498152]
[1750087772692,11.27124405,157.22,157.21,8.50498152]
[1750087773071,11.27124405,157.22,157.21,14.86590003]
[1750087774779,11.27124405,157.22,157.21,6.36091851]
[1750087774980,16.02017758,157.22,157.21,6.36091851]
[1750087775163,11.27124405,157.22,157.21,6.36091851]
[1750087776168,16.0190037,157.22,157.21,6.36091851]
[1750087776775,16.01932176,157.22,157.21,6.36091851]
[1750087777274,16.01932176,157.22,157.2,14.86615617]
[1750087777472,16.01932176,157.22,157.15,76.46638446]
[1750087777473,13.2533996,157.21,157.17,8.50498152]
[1750087777687,8.50498152,157.21,157.16,8.50498152]
[1750087777889,4.74909783,157.2,157.16,8.50498152]
[1750087778200,4.74895283,157.19,157.16,8.50498152]
[1750087778370,8.50498152,157.21,157.16,8.50498152]
[1750087778576,4.74913621,157.2,157.15,32.36334712]
[1750087778890,8.50498152,157.18,157.15,6.36334712]
[1750087779074,4.74913621,157.17,157.14,8.50498152]
[1750087779278,18.00452574,157.16,157.1,22.14977914]
[1750087779509,4.74977211,157.15,157.11,14.86994874]
[1750087779806,4.75012958,157.14,157.12,8.50498152]
[1750087780117,4.75029574,157.15,157.12,8.50498152]
[1750087780315,8.50498152,157.16,157.12,8.50498152]
[1750087780316,4.75032788,157.14,157.12,8.50498152]
[1750087780490,8.50498152,157.16,157.12,8.50498152]
[1750087780674,9.49978664,157.15,157.12,8.50498152]
[1750087780872,4.74937781,157.14,157.12,8.50498152]
[1750087781090,4.74951862,157.15,157.12,8.50498152]
[1750087781286,4.74951866,157.14,157.13,6.36415706]
[1750087783171,4.74948642,157.14,157.13,6.36415706]
[1750087783405,4.74948642,157.14,157.12,6.36441427]
[1750087783603,4.74937159,157.13,157.12,6.36441427]
[1750087783784,4.74922597,157.15,157.12,6.36441427]
[1750087783987,4.7492244,157.14,157.12,6.36441427]
[1750087784195,8.50498152,157.15,157.12,6.36441427]
[1750087784382,4.74929398,157.14,157.12,6.36441427]
[1750087784711,8.50498152,157.15,157.12,6.36441427]
[1750087784903,4.74905722,157.14,157.12,6.36441427]
[1750087785090,8.50498152,157.15,157.12,6.36441427]
[1750087785292,4.74856673,157.14,157.12,6.36441427]
[1750087785606,8.50498152,157.16,157.12,6.36441427]
[1750087785811,9.49656242,157.15,157.12,6.36441427]
[1750087785993,4.7483066,157.14,157.12,6.36441427]
[1750087786308,4.74830757,157.15,157.12,6.36441427]
[1750087786612,4.74848544,157.14,157.12,6.36441427]
[1750087786791,4.74847513,157.15,157.12,6.36441427]
[1750087786985,4.7483757,157.14,157.12,6.36441427]
[1750087787198,8.50498152,157.16,157.12,6.36441427]
[1750087787505,4.74828372,157.15,157.12,14.86939579]
[1750087787691,8.50498152,157.17,157.12,30.78080108]
[1750087787888,9.5000128,157.16,157.12,30.78080108]
[1750087788087,4.75000737,157.15,157.12,30.78080108]
[1750087788283,4.74990477,157.16,157.12,30.78080108]
[1750087788486,4.74992045,157.15,157.12,30.78080108]
[1750087788786,4.74989377,157.16,157.12,30.78080108]
[1750087788995,4.74995602,157.15,157.12,30.78080108]
[1750087789193,8.50498152,157.16,157.12,30.78080108]
[1750087789409,8.50498152,157.16,157.12,6.36441427]
[1750087789410,4.750153,157.15,157.12,6.36441427]
[1750087789581,4.750153,157.14,157.12,6.36441427]
[1750087789780,8.50498152,157.16,157.12,6.36441427]
[1750087790093,9.50023898,157.15,157.12,14.86939579]
[1750087790305,4.75010381,157.14,157.12,14.86939579]
[1750087790607,8.50498152,157.17,157.13,8.50498152]
[1750087790795,9.49849464,157.16,157.13,8.50498152]
[1750087790975,8.50498152,157.19,157.15,8.50498152]
[1750087791179,49.42124405,157.22,157.16,8.50498152]
[1750087791180,4.74867346,157.18,157.16,8.50498152]
[1750087791398,8.50498152,157.21,157.17,6.36253737]
[1750087791595,11.27124405,157.22,157.17,14.86751889]
[1750087791795,19.77622557,157.22,157.17,14.86751889]
[1750087792408,19.77622557,157.22,157.18,8.50498152]
[1750087792612,9.49590084,157.21,157.18,8.50498152]
[1750087792794,4.74795042,157.2,157.19,6.36172784]
[1750087794688,4.74795042,157.2,157.12,66.32779211]
[1750087794689,13.25293194,157.2,157.14,8.50498152]
[1750087794914,8.50498152,157.17,157.13,8.50498152]
[1750087795211,4.74795042,157.16,157.11,15.9115269]
[1750087795423,8.50498152,157.16,157.12,8.50498152]
[1750087795709,4.74858802,157.15,157.12,8.50498152]
[1750087795914,8.50498152,157.16,157.11,15.9115269]
[1750087796207,4.74883481,157.15,157.12,8.50498152]
[1750087796412,8.50498152,157.16,157.12,8.50498152]
[1750087796712,4.74893794,157.15,157.12,8.50498152]
[1750087796901,8.50498152,157.16,157.11,22.27649412]
[1750087797095,8.50498152,157.16,157.12,8.50498152]
[1750087797096,4.74887558,157.15,157.12,8.50498152]
[1750087797413,8.50498152,157.16,157.12,8.50498152]
[1750087797593,4.74845607,157.15,157.12,8.50498152]
[1750087797782,8.50498152,157.16,157.12,8.50498152]
[1750087797980,4.74847061,157.15,157.12,8.50498152]
[1750087798216,8.50498152,157.16,157.13,6.36415706]
[1750087798410,13.25354526,157.15,157.1,14.87035389]
[1750087798594,4.74856374,157.14,157.11,8.50498152]
[1750087798797,8.50498152,157.15,157.11,8.50498152]
[1750087798996,4.74876764,157.14,157.11,8.50498152]
[1750087799193,4.74869476,157.15,157.11,8.50498152]
[1750087799392,4.74876764,157.14,157.11,8.50498152]
[1750087799589,4.74818719,157.15,157.12,6.36456211]
[1750087799824,4.74808776,157.14,157.12,6.36456211]
[1750087799994,8.50498152,157.15,157.12,6.36456211]
[1750087800193,4.74808308,157.14,157.12,6.36456211]
[1750087800518,8.50498152,157.15,157.12,6.36456211]
[1750087800728,4.74757169,157.14,157.12,6.36456211]
[1750087801019,8.50498152,157.16,157.12,6.36456211]
[1750087801213,4.74756377,157.15,157.12,6.36456211]
[1750087801416,11.27124405,157.22,157.14,8.50498152]
[1750087801606,17.99749056,157.21,157.17,8.50498152]
[1750087801784,9.49250904,157.2,157.17,8.50498152]
[1750087801990,4.74625452,157.19,157.16,8.50498152]
[1750087802314,8.50498152,157.21,157.16,8.50498152]
[1750087802518,17.99742926,157.2,157.16,8.50498152]
[1750087802696,8.50498152,157.17,157.12,30.78094892]
[1750087803014,13.25180167,157.16,157.12,30.78094892]
[1750087803216,8.50498152,157.16,157.12,6.36456211]
[1750087803515,13.25219956,157.15,157.12,6.36456211]
[1750087803698,0.42648471,157.21,157.14,8.50498152]
[1750087804012,9.4928407,157.2,157.16,8.50498152]
[1750087804213,4.74642813,157.19,157.16,8.50498152]
[1750087804518,13.25106391,157.2,157.13,26.0]
[1750087804712,4.74529228,157.19,157.16,8.50498152]
[1750087805020,8.50498152,157.2,157.17,6.36253737]
[1750087806112,13.24985953,157.21,157.17,6.36253737]
[1750087806329,19.77622557,157.22,157.17,30.77386233]
[1750087806614,13.24950613,157.21,157.17,6.36253737]
[1750087806800,4.74452461,157.2,157.17,6.36253737]
[1750087806989,8.50498152,157.21,157.17,6.36253737]
[1750087807191,4.74411864,157.2,157.17,6.36253737]
[1750087807421,8.50498152,157.21,157.17,6.36253737]
[1750087807722,11.27124405,157.22,157.17,6.36253737]
[1750087807723,13.24915421,157.2,157.17,6.36253737]
[1750087807889,8.50498152,157.2,157.17,6.36253737]
[1750087809698,8.50498152,157.21,157.17,6.36253737]
[1750087810012,11.27124405,157.22,157.2,8.50498152]
[1750087810213,4.74408042,157.21,157.19,8.50498152]
[1750087810522,11.27124405,157.22,157.19,8.50498152]
[1750087810695,11.27124405,157.22,157.17,22.26888081]
[1750087810896,11.27124405,157.22,157.19,8.50498152]
[1750087811126,12.91740587,157.24,157.21,8.50498152]
[1750087811292,12.91740587,157.24,157.23,8.50498152]
[1750087811492,17.98794616,157.29,157.23,8.50498152]
[1750087811708,8.50498152,157.29,157.23,8.50498152]
[1750087812018,8.50498152,157.29,157.22,5.14563526]
[1750087812019,8.50498152,157.29,157.21,26.0]
[1750087812196,31.16601664,157.32,157.23,8.50498152]
[1750087812197,4.73534296,157.3,157.23,8.50498152]
[1750087812532,8.50498152,157.28,157.23,8.50498152]
[1750087812819,8.50498152,157.27,157.21,26.0]
[1750087813018,8.50498152,157.25,157.2,8.50498152]
[1750087813228,8.50498152,157.25,157.21,6.36091851]
[1750087813396,8.50498152,157.24,157.21,6.36091851]
[1750087813595,4.73657428,157.27,157.21,6.36091851]
[1750087813596,4.73635801,157.26,157.21,6.36091851]
[1750087813811,13.24026919,157.25,157.21,6.36091851]
[1750087814121,8.50498152,157.25,157.21,6.36091851]
[1750087814490,4.73546461,157.27,157.22,8.50498152]
[1750087814807,8.50498152,157.27,157.23,8.50498152]
[1750087815205,8.50498152,157.27,157.24,6.3597049]
[1750087817115,8.50498152,157.25,157.18,41.90510885]
[1750087817320,4.73223096,157.24,157.18,8.50498152]
[1750087817520,8.50498152,157.22,157.17,14.86751889]
[1750087818030,8.50498152,157.22,157.18,8.50498152]
[1750087818960,8.50498152,157.21,157.17,6.36253737]
[1750087819529,13.23962252,157.21,157.17,14.86751889]
[1750087819734,8.50498152,157.21,157.17,6.36253737]
[1750087819918,8.50498152,157.2,157.17,6.36253737]
[1750087820544,13.24091365,157.21,157.17,6.36253737]
[1750087820851,8.50498152,157.21,157.17,6.36253737]
[1750087821419,8.50498152,157.21,157.17,8.50498152]
[1750087822020,8.50498152,157.21,157.16,6.36294222]
[1750087822221,8.50498152,157.21,157.17,8.50498152]
[1750087823059,8.50498152,157.21,157.16,22.27029778]
[1750087823060,8.50498152,157.21,157.16,30.7752793]
[1750087823221,8.50498152,157.2,157.16,30.7752793]
[1750087824847,8.50498152,157.21,157.16,30.7752793]
[1750087825059,4.73682519,157.23,157.18,8.50498152]
[1750087825368,4.7367312,157.22,157.18,8.50498152]
[1750087825569,13.24180671,157.23,157.18,8.50498152]
[1750087825751,4.73673077,157.22,157.19,6.36172784]
[1750087825926,13.24180671,157.23,157.19,6.36172784]
[1750087826271,4.73745392,157.22,157.19,6.36172784]
[1750087826436,13.24180671,157.23,157.19,6.36172784]
[1750087826637,4.73745392,157.22,157.19,6.36172784]
[1750087826857,13.24243544,157.23,157.19,6.36172784]
[1750087827059,13.24243544,157.22,157.19,6.36172784]
[1750087827249,8.50498152,157.22,157.19,6.36172784]
[1750087828034,10.288759,157.25,157.16,24.41233708]
[1750087828035,8.50498152,157.2,157.16,24.41233708]
[1750087828377,8.50498152,157.2,157.17,6.36253737]
[1750087828854,8.50498152,157.18,157.16,6.36278056]
[1750087829041,8.50498152,157.17,157.14,6.36375206]
[1750087829259,8.50498152,157.2,157.16,8.50498152]
[1750087829260,4.73963005,157.19,157.16,8.50498152]
[1750087829439,19.6351946,157.2,157.16,8.50498152]
[1750087829644,11.13021308,157.2,157.16,8.50498152]
[1750087829863,11.13021308,157.2,157.17,6.36253737]
[1750087830050,11.13021308,157.2,157.18,8.50498152]
[1750087830239,27.5607,157.25,157.19,8.50498152]
[1750087830240,4.74114686,157.24,157.19,8.50498152]
[1750087830449,145.6,157.28,157.23,8.50498152]
[1750087830677,4.73899685,157.27,157.25,8.50498152]
[1750087830970,17.48058457,157.29,157.24,12.74165152]
[1750087831174,9.47788975,157.28,157.24,12.74165152]
[1750087831378,4.73892632,157.27,157.23,12.74165152]
[1750087831668,12.74165152,157.28,157.23,12.74165152]
[1750087831881,4.737276,157.27,157.24,6.3597049]
[1750087832170,17.47890571,157.28,157.24,6.3597049]
[1750087832371,4.73726619,157.27,157.24,6.3597049]
[1750087832581,12.74165152,157.28,157.24,6.3597049]
[1750087832582,17.47890571,157.28,157.24,19.10135642]
[1750087832750,12.74165152,157.28,157.24,19.10135642]
[1750087833078,17.47957895,157.28,157.24,19.10135642]
[1750087833381,12.74165152,157.28,157.24,19.10135642]
[1750087833672,4.73789851,157.27,157.24,19.10135642]
[1750087833837,29.58541664,157.32,157.25,12.74165152]
[1750087834165,9.47208224,157.31,157.27,12.74165152]
[1750087834473,9.47193899,157.3,157.26,12.74165152]
[1750087834645,4.73604112,157.29,157.26,12.74165152]
[1750087834846,4.73589787,157.3,157.26,12.74165152]
[1750087835073,4.73589095,157.29,157.26,12.74165152]
[1750087835262,12.74165152,157.31,157.26,12.74165152]
[1750087835466,4.73567245,157.3,157.27,12.74165152]
[1750087835774,12.74165152,157.31,157.27,6.35836533]
[1750087835978,4.73415878,157.3,157.27,6.35836533]
[1750087836155,12.74165152,157.31,157.27,6.35836533]
[1750087836473,4.73434371,157.3,157.27,19.10001685]
[1750087836643,12.74165152,157.31,157.27,19.10001685]
[1750087836835,4.73419097,157.3,157.27,19.10001685]
[1750087837034,17.47600284,157.31,157.27,19.10001685]
[1750087837273,4.73415738,157.3,157.27,19.10001685]
[1750087837438,17.47600284,157.31,157.27,19.10001685]
[1750087837634,12.74165152,157.31,157.27,19.10001685]
[1750087837879,4.73418093,157.3,157.27,19.10001685]
[1750087838062,12.74165152,157.31,157.27,19.10001685]
[1750087838271,4.73210248,157.3,157.27,19.10001685]
[1750087838478,12.74165152,157.31,157.27,19.10001685]
[1750087838650,4.7321123,157.3,157.27,19.10001685]
[1750087838981,12.74165152,157.31,157.27,19.10001685]
[1750087839145,4.73134014,157.3,157.27,19.10001685]
[1750087839555,12.74165152,157.31,157.27,19.10001685]
[1750087840583,4.72952297,157.33,157.27,19.10001685]
[1750087840893,4.72949847,157.32,157.29,12.74165152]
[1750087841043,12.74165152,157.33,157.27,22.25459474]
[1750087841249,12.74165152,157.32,157.27,6.35836533]
[1750087841557,12.74165152,157.33,157.27,6.35836533]
[1750087841956,40.30105152,157.34,157.27,18.64964886]
[1750087842162,38.74165152,157.34,157.27,18.64964886]
[1750087842678,12.74165152,157.33,157.27,18.64964886]
[1750087843364,26.0,157.34,157.27,18.64964886]
[1750087843558,17.47326261,157.33,157.27,18.64964886]
[1750087843787,12.74165152,157.33,157.27,18.64964886]
[1750087844295,12.74165152,157.33,157.28,22.25330619]
[1750087846886,22.82178846,157.37,157.32,12.74165152]
[1750087846887,16.18284651,157.37,157.32,12.74165152]
[1750087847051,33.65091404,157.37,157.32,12.74165152]
[1750087847261,33.65091404,157.37,157.34,12.74165152]
[1750087847262,16.18284651,157.37,157.34,12.74165152]
[1750087848059,16.18284651,157.37,157.3,18.79181043]
[1750087848258,16.18284651,157.37,157.35,6.35525897]
[1750087848780,12.74165152,157.38,157.35,6.35525897]
[1750087849075,12.74165152,157.36,157.26,18.64964886]
[1750087849255,12.74165152,157.34,157.29,12.74165152]
[1750087849458,12.74165152,157.34,157.3,12.74165152]
[1750087849668,12.74165152,157.35,157.31,12.74165152]
[1750087849888,0.28432314,157.37,157.31,12.74165152]
[1750087850080,0.28432314,157.37,157.32,12.74165152]
[1750087850081,12.74165152,157.36,157.32,12.74165152]
[1750087850282,12.74165152,157.36,157.33,6.35606686]
[1750087850576,12.74165152,157.35,157.33,6.35606686]
[1750087850969,8.4876792,157.35,157.33,6.35606686]
[1750087851164,8.4876792,157.36,157.33,6.35606686]
[1750087851986,8.4876792,157.38,157.33,14.84374606]
[1750087852488,8.4876792,157.38,157.33,30.73391322]
[1750087852786,8.4876792,157.38,157.34,8.4876792]
[1750087852985,17.73221282,157.4,157.34,8.4876792]
[1750087853190,8.4876792,157.38,157.34,8.4876792]
[1750087853393,8.4876792,157.39,157.35,8.4876792]
[1750087853626,17.73221282,157.4,157.38,8.4876792]
[1750087854193,17.73221282,157.4,157.39,6.35364381]
[1750087854994,17.73221282,157.4,157.35,14.84293817]
[1750087855193,26.21989202,157.4,157.36,8.4876792]
[1750087855623,17.73221282,157.4,157.37,8.4876792]
[1750087856720,17.73221282,157.4,157.38,14.84172672]
[1750087857017,8.4876792,157.44,157.39,8.4876792]
[1750087857287,8.4876792,157.44,157.4,8.4876792]
[1750087857916,8.4876792,157.44,157.38,22.23916634]
[1750087857917,19.81626806,157.47,157.42,8.4876792]
[1750087858105,19.81626806,157.47,157.43,8.4876792]
[1750087858504,11.32858886,157.47,157.43,8.4876792]
[1750087858703,19.81626806,157.47,157.44,6.35162601]
[1750087859906,11.32858886,157.47,157.45,8.4876792]
[1750087860112,40.03177317,157.51,157.46,8.4876792]
[1750087860331,1.6124,157.55,157.47,8.4876792]
[1750087860537,8.4876792,157.52,157.48,8.4876792]
[1750087860711,8.4876792,157.52,157.49,6.34960949]
[1750087861343,8.4876792,157.51,157.49,6.34960949]
[1750087861639,8.4876792,157.53,157.49,6.34960949]
[1750087862128,8.4876792,157.53,157.49,14.83728869]
[1750087863141,8.4876792,157.53,157.49,6.34960949]
[1750087863828,8.4876792,157.53,157.49,14.83728869]
[1750087864231,8.4876792,157.52,157.45,7.9279]
[1750087864423,8.4876792,157.51,157.47,8.4876792]
[1750087864611,8.4876792,157.52,157.48,8.4876792]
[1750087866315,8.4876792,157.51,157.47,14.83787156]
[1750087867320,4.96287777,157.55,157.48,8.4876792]
[1750087867321,4.67855463,157.55,157.48,8.4876792]
[1750087867641,3.30000283,157.56,157.52,8.4876792]
[1750087867845,33.02532435,157.63,157.55,27.13732806]
[1750087868033,8.4876792,157.61,157.57,8.4876792]
[1750087868345,8.4876792,157.65,157.59,18.64964886]
[1750087868514,13.15831747,157.66,157.61,8.4876792]
[1750087868914,4.67063827,157.66,157.57,26.0]
[1750087869138,8.4876792,157.6,157.55,34.4876792]
[1750087869312,8.4876792,157.59,157.55,26.0]
[1750087869931,8.4876792,157.58,157.54,8.4876792]
[1750087870135,8.4876792,157.57,157.52,32.091]
[1750087870321,8.4876792,157.55,157.49,93.25453357]
[1750087870522,8.4876792,157.56,157.51,8.4876792]
[1750087870818,12.69627175,157.57,157.5,44.64964886]
[1750087871017,12.69627175,157.57,157.53,12.69627175]
[1750087871446,12.69627175,157.57,157.52,12.69627175]
[1750087871625,12.69627175,157.57,157.52,19.04427251]
[1750087872829,12.69627175,157.57,157.52,6.34800076]
[1750087873141,12.69627175,157.57,157.52,19.04427251]
[1750087873445,12.69627175,157.56,157.52,19.04427251]
[1750087873658,12.69627175,157.56,157.52,6.34800076]
[1750087874241,12.69627175,157.55,157.51,19.04495117]
[1750087874752,12.69627175,157.55,157.51,6.34867942]
[1750087874954,12.69627175,157.55,157.51,19.04495117]
[1750087876555,12.69627175,157.53,157.49,98.0301733]
[1750087876733,12.69627175,157.54,157.49,98.0301733]
[1750087877049,12.69627175,157.53,157.49,98.0301733]
[1750087877463,12.69627175,157.53,157.49,91.68330635]
[1750087877752,12.69627175,157.51,157.49,85.33390155]
[1750087877958,12.69627175,157.53,157.49,85.33390155]
[1750087878453,12.69627175,157.53,157.49,104.3797381]
[1750087878634,12.69627175,157.54,157.5,12.69627175]
[1750087878839,6.63035989,157.58,157.49,91.68346635]
[1750087879042,12.69627175,157.55,157.5,12.69627175]
[1750087879777,12.69627175,157.54,157.51,6.34880325]
[1750087879952,12.69627175,157.53,157.5,6.34905577]
[1750087881045,12.69627175,157.51,157.49,85.33390155]
[1750087881248,0.28432314,157.55,157.49,85.33390155]
[1750087881452,12.69627175,157.51,157.49,85.33390155]
[1750087882056,12.69627175,157.5,157.49,85.33390155]
[1750087882446,12.69627175,157.5,157.42,6.35243298]
[1750087882653,12.69627175,157.45,157.42,6.35243298]
[1750087882836,12.69627175,157.43,157.37,14.22657175]
[1750087883159,12.69627175,157.43,157.38,34.93543809]
[1750087884237,12.69627175,157.45,157.4,12.69627175]
[1750087884441,0.42648471,157.49,157.4,12.69627175]
[1750087884442,12.69627175,157.44,157.4,12.69627175]
[1750087884640,12.69627175,157.44,157.39,31.34592061]
[1750087884874,12.69627175,157.43,157.39,31.34592061]
[1750087885040,12.69627175,157.43,157.4,6.35324015]
[1750087885368,12.69627175,157.43,157.4,22.23634053]
[1750087885750,11.26268218,157.47,157.4,6.35324015]
[1750087885751,12.69627175,157.41,157.4,6.35324015]
[1750087887143,12.69627175,157.41,157.37,6.35445129]
[1750087887370,12.69627175,157.38,157.37,6.35445129]
[1750087889075,12.69627175,157.38,157.34,22.24390037]
[1750087889251,12.69627175,157.39,157.34,34.94017212]
[1750087889450,12.69627175,157.38,157.34,34.94017212]
[1750087889667,4.69651531,157.41,157.34,6.35566289]
[1750087889668,12.69627175,157.36,157.34,6.35566289]